[Event "Baku Open 2024"]
[Site "Baku"]
[Date "2024.07.03"]
[Round "5.13"]
[White "Mohamed Anees M"]
[Black "Assaubayeva, Bibisara"]
[Result "1/2-1/2"]
[ECO "C70"]
[WhiteElo "2306"]
[BlackElo "2472"]
[Annotator "TA"]
[PlyCount "72"]
[EventDate "2024.06.29"]
[EventType "swiss"]
[EventCountry "AZE"]
[SourceTitle "playchess.com"]
[Source "ChessBase"]
[SourceQuality "1"]
[TimeControl "5400+30"]

{[%evp 15,72,35,40,-14,-10,-10,-12,-21,-19,-8,-16,-5,0,0,-3,-31,-37,-41,-43,-45,-23,-44,-34,-45,-38,-33,-40,-56,-56,-58,-29,-65,-67,-87,-47,-72,-86,-65,-79,-72,-69,-101,-57,-64,-30,-32,-1,-19,0,0,9,-9,-3,-5,0,0,0,10,17]} 1. e4 {[%emt 0:00:04]} e5 {[%emt 0:01:14]} 2. Nf3 {[%emt 0:00:07]} Nc6 {[%emt 0:00:08]} 3. Bb5 {[%emt 0:00:06][%cal Bf1b5,Bb5a4,Ba4b3][%mdl 32]} a6 {[%emt 0:00:05]} 4. Ba4 {[%emt 0:00:05]} b5 {[%emt 0:00:39]} 5. Bb3 {[%emt 0:00:06]} Na5 {[%emt 0:00:07]} 6. O-O {[%emt 0:13:30]} d6 {[%emt 0:01:23]} 7. d4 {[%emt 0:06:27]} exd4 {[%emt 0:00:16]} 8. Nxd4 {[%emt 0:00:19]} Bb7 {[%emt 0:00:12][%cal Oc7c5]} 9. Nf3 {[%emt 0:00:54]} (9. Bd2 $14 Nxb3 10. Nxb3) 9... Nf6 {[%emt 0:06:46][%cal Oa5b3]} 10. Nc3 {[%emt 0:01:50]} Be7 {[%emt 0:01:54]} 11. Re1 {[%emt 0:04:10]} O-O {[%emt 0:02:02]} 12. Qd3 {[%emt 0:13:28]} Nxb3 {[%emt 0:12:01]} 13. axb3 {[%emt 0:00:20]} Re8 {[%emt 0:05:58]} 14. Bd2 {[%emt 0:05:19]} d5 {[%emt 0:13:24]} 15. e5 {[%emt 0:08:17]} Ne4 {[%emt 0:01:36]} 16. Bf4 {[%emt 0:06:03]} Nc5 {[%emt 0:05:13]} 17. Qe3 {[%emt 0:03:47]} b4 {[%emt 0:03:28]} 18. Ne2 {[%emt 0:00:43]} Qc8 {[%emt 0:02:06]} 19. Nfd4 {[%emt 0:03:04]} Ne4 {[%emt 0:03:16]} 20. Ng3 {[%emt 0:04:14]} Nxg3 {[%emt 0:07:18]} 21. Qxg3 {[%emt 0:04:49]} c5 {[%emt 0:00:20]} 22. Nf3 {[%emt 0:01:17][%cal Oe5e6]} Qf5 {[%emt 0:00:32]} 23. Re2 {[%emt 0:02:40][%cal Oe5e6]} a5 {[%emt 0:02:20]} 24. Bg5 {[%emt 0:01:25]} Bxg5 {[%emt 0:04:34]} 25. Qxg5 {[%emt 0:02:25]} Qxg5 {[%emt 0:00:26]} 26. Nxg5 {[%emt 0:00:05]} f6 {[%emt 0:05:11] Repels f4} 27. Nf3 {[%emt 0:00:05]} d4 {[%emt 0:00:29]} 28. Nd2 {[%emt 0:05:58]} Bd5 {[%emt 0:04:26]} (28... fxe5 29. f3 $11) 29. f4 {[%emt 0:02:50]} fxe5 {[%emt 0:00:06] [#] White must now prevent ...e4.} 30. Rae1 {[%emt 0:00:06]} a4 {[%emt 0:06:05]} 31. bxa4 {[%emt 0:00:05] The position is equal.} c4 {[%emt 0:03:59]} (31... Rxa4 32. Rxe5 Rd8 (32... Rxe5 33. Rxe5 Bf7 34. Rxc5 $16) 33. Re8+ Rxe8 34. Rxe8+ Kf7 35. Re5) (31... e4 $5 32. Nxe4 Bxe4 (32... Rxa4 $2 33. Nf6+ gxf6 34. Rxe8+ Kf7 35. f5 $18) 33. Rxe4 Rxe4 34. Rxe4 Rxa4 $14) 32. Rxe5 {[%emt 0:00:54]} Red8 {[%emt 0:00:31]} 33. Ne4 {[%emt 0:07:50]} Rxa4 {[%emt 0:01:25] Black wants to play ...Ra2.} 34. Rd1 {[%emt 0:00:04]} Bf7 {[%emt 0:02:59]} 35. Rb5 {[%emt 0:00:27]} Be8 {[%emt 0:02:07]} 36. Rc5 {[%emt 0:00:07]} b3 {[%emt 0:01:38] Weighted Error Value: White=0.11 (very precise) /Black=0.09 (flawless) .  Inaccurate:     	White=3     	Black=5      OK:         	White=12    	Black=10     Best:        	---       	Black=1} 1/2-1/2

[Event "Baku Open 2024"]
[Site "Baku"]
[Date "2024.07.03"]
[Round "5.14"]
[White "Israilov, Agil"]
[Black "Shuvalova, Polina"]
[Result "1/2-1/2"]
[ECO "C90"]
[WhiteElo "2141"]
[BlackElo "2467"]
[Annotator "TA"]
[PlyCount "44"]
[EventDate "2024.06.29"]
[EventType "swiss"]
[EventCountry "AZE"]
[SourceTitle "playchess.com"]
[Source "ChessBase"]
[SourceQuality "1"]
[TimeControl "5400+30"]

{[%evp 23,44,16,14,9,22,0,0,0,0,-11,-15,-18,-22,-14,-11,-18,-14,-10,-10,-17,-14,-5,2]} 1. e4 {[%emt 0:00:03]} e5 {[%emt 0:00:17]} 2. Nf3 {[%emt 0:00:05]} Nc6 {[%emt 0:00:07]} 3. Bb5 {[%emt 0:00:06][%cal Bf1b5,Bb5a4,Ba4b3][%mdl 32]} a6 {[%emt 0:00:09]} 4. Ba4 {[%emt 0:00:05]} Nf6 {[%emt 0:00:08]} 5. O-O {[%emt 0:00:08]} Be7 {[%emt 0:00:09]} 6. d3 {[%emt 0:00:06]} b5 {[%emt 0:00:14]} 7. Bb3 {[%emt 0:00:05]} d6 {[%emt 0:00:03]} 8. a4 {[%emt 0:00:05]} Bd7 {[%emt 0:00:07]} 9. c3 {[%emt 0:00:07]} O-O {[%emt 0:00:13]} 10. Bc2 {[%emt 0:00:05]} Re8 {[%emt 0:00:23]} 11. Nbd2 {[%emt 0:00:15][%cal Bb1d2,Bd2f1,Bf1e3][%mdl 32]} Bf8 {[%emt 0:00:13]} 12. Re1 {[%emt 0:00:06]} h6 {[%emt 0:00:27] The position is equal.} 13. Nf1 {[%emt 0:00:12]} d5 {[%emt 0:01:04]} 14. Ne3 {[%emt 0:09:08]} Be6 {[%emt 0:02:47]} 15. exd5 {[%emt 0:17:04]} Nxd5 {[%emt 0:00:12]} 16. d4 {[%emt 0:03:45]} exd4 {[%emt 0:08:06]} 17. Nxd4 {[%emt 0:00:18]} Nxd4 {[%emt 0:00:32]} 18. Qxd4 {[%emt 0:00:32]} Nf6 {[%emt 0:01:27]} 19. Qxd8 {[%emt 0:06:31]} Rexd8 {[%emt 0:00:15]} 20. Nf5 {[%emt 0:00:54]} c5 {[%emt 0:01:21]} 21. Bf4 {[%emt 0:13:13]} b4 {[%emt 0:00:23]} 22. Ne3 {[%emt 0:02:40]} Bd6 {[%emt 0:28:26] A rather calm draw.   Weighted Error Value: White=0.04 (flawless) /Black=0.00 (flawless) .  OK:         	White=5     	Black=6} 1/2-1/2

[Event "Baku Open 2024"]
[Site "Baku"]
[Date "2024.07.03"]
[Round "5.15"]
[White "Agmanov, Zhandos"]
[Black "Akhilbay, Imangali"]
[Result "1/2-1/2"]
[ECO "C11"]
[WhiteElo "2464"]
[BlackElo "2303"]
[Annotator "RC"]
[PlyCount "33"]
[EventDate "2024.06.29"]
[EventType "swiss"]
[EventCountry "AZE"]
[SourceTitle "playchess.com"]
[Source "ChessBase"]
[SourceQuality "1"]
[TimeControl "5400+30"]

1. e4 {[%emt 0:00:59]} e6 {[%emt 0:00:04]} 2. d4 {[%emt 0:01:06]} d5 {[%emt 0:00:04]} 3. Nc3 {[%emt 0:00:06]} Nf6 {[%emt 0:00:32]} 4. e5 {[%emt 0:00:26]} Nfd7 {[%emt 0:00:06]} 5. f4 {[%emt 0:00:10]} c5 {[%emt 0:00:08]} 6. Nf3 {[%emt 0:00:05]} Nc6 {[%emt 0:00:05]} 7. Be3 {[%emt 0:00:04]} a6 {[%emt 0:00:06]} 8. a3 {[%emt 0:00:52]} cxd4 {[%emt 0:01:31]} 9. Nxd4 {[%emt 0:01:21]} Bc5 {[%emt 0:00:32]} 10. Qd2 {[%emt 0:01:49]} g5 {[%emt 0:03:22]} 11. Nxc6 {[%emt 0:08:40]} Bxe3 {[%emt 0:01:54]} 12. Qxe3 {[%emt 0:00:04]} bxc6 {[%emt 0:05:17]} 13. O-O-O {[%emt 0:03:23]} Qb6 {[%emt 0:15:18]} 14. Qxb6 {[%emt 0:03:58]} Nxb6 {[%emt 0:00:07]} 15. fxg5 {[%emt 0:00:50]} Bb7 {[%emt 0:03:24]} 16. Bd3 {[%emt 0:14:47]} Ke7 {[%emt 0:04:32]} 17. h4 {[%emt 0:25:40]} 1/2-1/2

[Event "Baku Open 2024"]
[Site "Baku"]
[Date "2024.07.03"]
[Round "5.16"]
[White "Bharadia Yash"]
[Black "Jubin Jimmy"]
[Result "0-1"]
[ECO "C78"]
[WhiteElo "2100"]
[BlackElo "2452"]
[Annotator "TA"]
[PlyCount "166"]
[EventDate "2024.06.29"]
[EventType "swiss"]
[EventCountry "AZE"]
[SourceTitle "playchess.com"]
[Source "ChessBase"]
[SourceQuality "1"]
[TimeControl "5400+30"]

{[%evp 85,166,-662,-661,-1182,-1167,-1561,-1567,-1541,-1674,-1807,-1812,-1872,-1893,-1895,-1915,-1754,-1764,-1519,-1137,-1090,-1082,-950,-480,-874,-861,-767,-753,-649,-645,-988,-872,-1919,-2489,-1938,-1873,-29969,-29968,-29962,-1562,-1429,-1304,-1164,0,-460,0,-6302,-6302,-1457,-287,-262,0,-777,-736,-712,-660,-786,-777,-1645,-1500,-3645,-2667,-1272,-1416,-1417,-939,-6099,-5314,-29979,-29981,-29982,-29983,-29980,-6223,-4879,-2590,-29971,-29969,-29979,-29980,-29981,-29982,-29981,-29982]} 1. e4 {[%emt 0:00:36]} e5 {[%emt 0:00:43]} 2. Nf3 {[%emt 0:00:03]} Nc6 {[%emt 0:00:03]} 3. Bb5 {[%emt 0:00:07]} a6 {[%emt 0:00:51]} 4. Ba4 {[%emt 0:00:02]} Nf6 {[%emt 0:00:08]} 5. O-O {[%emt 0:00:05]} b5 {[%emt 0:00:07]} 6. Bb3 {[%emt 0:00:05]} Bc5 {[%emt 0:00:49]} 7. a4 {[%emt 0:00:21]} Rb8 {[%emt 0:00:58]} 8. c3 {[%emt 0:00:30]} d6 {[%emt 0:00:52]} 9. d4 {[%emt 0:00:06]} Bb6 {[%emt 0:00:04]} 10. a5 {[%emt 0:00:49] 10.a5 scores better than 10.axb5. C78: Ruy Lopez: Archangelsk and Möller Defences.} Ba7 {[%emt 0:00:05]} 11. h3 {[%emt 0:00:55]} Bb7 {[%emt 0:02:58]} 12. Re1 {[%emt 0:22:44]} O-O {[%emt 0:05:30]} 13. Bg5 {[%emt 0:06:10]} h6 {[%emt 0:07:25]} 14. Bh4 {[%emt 0:00:09]} g5 {[%emt 0:10:58]} 15. Bg3 {[%emt 0:23:32]} Re8 {[%emt 0:10:09]} 16. dxe5 {[%emt 0:01:53]} dxe5 $146 {[%emt 0:00:16]} ({Predecessor:} 16... Nxe5 17. Bc2 Nc4 18. b3 Nxe4 19. Bxe4 Bxe4 20. bxc4 bxc4 21. Nbd2 Bd3 22. Qa4 Rb5 23. Nxc4 Rxe1+ 24. Rxe1 {1-0 Fedoseev,V (2704)-Pichot,A (2628) FIDE Grand Swiss 2021 (6)}) 17. Nfd2 {[%emt 0:05:57]} Qd3 {[%emt 0:06:58]} 18. Kh1 {[%emt 0:02:37]} Rbd8 {[%emt 0:02:47]} 19. Bc2 {[%emt 0:00:14]} Qd6 {[%emt 0:01:40]} 20. Qf3 {[%emt 0:00:28]} Bc8 {[%emt 0:04:58]} 21. Qe2 {[%emt 0:03:33]} Ne7 {[%emt 0:04:38]} 22. Nf1 {[%emt 0:01:35]} Ng6 {[%emt 0:02:54]} 23. Ne3 {[%emt 0:06:29]} Nf4 {[%emt 0:06:02]} 24. Qf3 {[%emt 0:00:33]} h5 {[%emt 0:02:02]} 25. Bh2 {[%emt 0:01:13]} g4 {[%emt 0:03:40]} 26. Qg3 {[%emt 0:04:33]} Ng6 {[%emt 0:01:38]} 27. h4 {[%emt 0:02:59]} Qc5 {[%emt 0:04:55]} 28. Bg1 {[%emt 0:01:02]} Qf8 {[%emt 0:04:12]} 29. f3 {[%emt 0:00:30]} Bb8 {[%emt 0:01:55]} 30. Nf5 {[%emt 0:04:15]} c5 {[%emt 0:02:17]} 31. Qf2 {[%emt 0:01:57]} Bxf5 {[%emt 0:01:11]} 32. exf5 {[%emt 0:01:31]} Nf4 {[%emt 0:00:06]} 33. Nd2 {[%emt 0:01:34]} Qe7 {[%emt 0:03:45]} 34. Bh2 {[%emt 0:01:40]} Nd3 {[%emt 0:01:30]} 35. Bxd3 {[%emt 0:00:07]} Rxd3 {[%emt 0:00:01]} 36. Ne4 {[%emt 0:00:45]} c4 {[%emt 0:02:28]} 37. Qb6 {[%emt 0:01:29]} Nxe4 {[%emt 0:02:16]} 38. Rxe4 {[%emt 0:00:01]} Qxh4 {[%emt 0:00:40]} 39. Qh6 {[%emt 0:02:00]} Rd6 {[%emt 0:00:15]} 40. Qe3 {[%emt 0:00:37]} Red8 {[%emt 0:00:22]} 41. Re1 {[%emt 0:04:15]} Rd1 {[%emt 0:03:49]} 42. g3 {[%emt 0:00:02]} Qf6 {[%emt 0:00:20]} 43. fxg4 {[%emt 0:00:16]} Ba7 {[%emt 0:01:33]} 44. Qe2 {[%emt 0:01:37]} Qc6 {[%emt 0:00:56]} 45. Rxd1 {[%emt 0:00:29]} Rxd1+ {[%emt 0:00:03]} 46. Kg2 {[%emt 0:00:01]} Rd2 {[%emt 0:00:10]} 47. Qxd2 {[%emt 0:00:05]} Qxe4+ {[%emt 0:00:02]} 48. Kh3 {[%emt 0:00:16]} Qxg4+ {[%emt 0:00:29]} 49. Kg2 {[%emt 0:00:01]} Qe4+ {[%emt 0:00:05]} 50. Kh3 {[%emt 0:00:11]} Qxf5+ {[%emt 0:00:02]} 51. Kg2 {[%emt 0:00:01]} Kg7 {[%emt 0:01:17]} 52. Bg1 {[%emt 0:00:11]} Bxg1 {[%emt 0:00:52]} 53. Kxg1 {[%emt 0:00:01]} f6 {[%emt 0:01:06]} 54. Qd6 {[%emt 0:00:12]} (54. Kh2 $142 Qb1 55. Qd7+ Kg6 56. Qe8+ Kg5 57. Qg8+ Qg6 58. Qc8) 54... Qb1+ $19 {[%emt 0:00:29]} 55. Kh2 {[%emt 0:00:29]} Qxb2+ {[%emt 0:00:36]} 56. Kh3 {[%emt 0:00:01]} Qb1 {[%emt 0:00:24]} 57. Qe7+ {[%emt 0:01:25]} Kg6 {[%emt 0:00:03]} 58. Qe8+ {[%emt 0:00:03]} Kg5 {[%emt 0:00:08]} 59. Qg8+ {[%emt 0:00:45]} Qg6 {[%emt 0:00:02]} 60. Qd5 {[%emt 0:00:04]} Qf5+ {[%emt 0:00:25]} 61. Kh2 {[%emt 0:00:17]} Qf2+ {[%emt 0:01:06]} (61... Qc2+ $142 62. Kh3 h4 (62... Qxc3 $2 63. Qg8+ Kf5 64. Qc8+ Ke4 65. Qxa6 $19) 63. Qg8+ Qg6 64. gxh4+ Kf5 65. Qd5 Qg4+ 66. Kh2 Qxh4+ 67. Kg1 Qg3+ 68. Kh1 Qxc3 69. Qf7 Qf3+ (69... Qxa5 70. Qh5+ Kf4 71. Qh6+ Ke4 72. Qh4+ Ke3 73. Qh6+ Ke2 74. Qh8 $19) 70. Kg1 c3 71. Kh2 Qf2+ 72. Kh1 Qh4+ 73. Kg2 c2 74. Qd7+ Ke4 75. Qc6+ Kd3 76. Qd7+ Ke2 77. Qf5 Qg5+ (77... c1=B 78. Qf3+ Kd2 79. Qc6 Qg4+ 80. Kf2 Bb2 81. Kf1 Bd4 82. Qg2+ Qxg2+ 83. Kxg2 e4 84. Kh2 e3 85. Kh3 e2 86. Kg4 e1=Q 87. Kf5 Qe8 88. Kg4 Qg6+ 89. Kh3 Qg1 90. Kh4 Bf2+ 91. Kh5 Qg5#) 78. Qxg5 fxg5 79. Kg3 c1=Q (79... c1=B {is a self mate.} 80. Kg4 b4 81. Kh5 b3 82. Kg6 b2 83. Kf6 b1=Q 84. Ke6 g4 85. Kf7 g3 86. Kf6 g2 87. Ke6 g1=Q 88. Kxe5 Qc5+ 89. Kf6 Qbf5+ 90. Kg7 Qcf8#) 80. Kg4 Qc8+ 81. Kxg5 Qe6 82. Kh5 b4 83. Kh4 Qg6 84. Kh3 Kf3 85. Kh4 Qh6#) 62. Kh3 $19 {[%emt 0:00:07]} Qf1+ {[%emt 0:00:08]} 63. Kh2 {[%emt 0:00:01]} Qf2+ {[%emt 0:01:23]} (63... Qf5 $142 64. Qd2+ Kg6) 64. Kh3 $1 $19 {[%emt 0:00:02]} Qf5+ {[%emt 0:00:14]} 65. Kh2 $1 {[%emt 0:01:06]} Qc2+ {[%emt 0:01:17]} 66. Kh3 {[%emt 0:00:32]} Qd3 $2 {[%emt 0:00:36]} (66... h4 {( -> ...hxg3)} 67. Qg8+ Qg6 68. gxh4+ Kf5) 67. Qg8+ $19 {[%emt 0:00:03]} Qg6 {[%emt 0:00:10]} 68. Qd5 $1 {[%emt 0:00:20]} Qe8 {[%emt 0:00:36]} 69. Kh2 {[%emt 0:01:35]} Qc8 {[%emt 0:00:44]} 70. Qd6 {[%emt 0:00:14]} Kg6 {[%emt 0:00:18]} 71. Qd5 {[%emt 0:01:42]} b4 {[%emt 0:00:21]} 72. cxb4 {[%emt 0:00:15]} c3 {[%emt 0:00:02]} 73. Qd3+ {[%emt 0:00:21]} Kg7 {[%emt 0:00:02]} 74. Qc2 {[%emt 0:00:03]} Qc6 {[%emt 0:00:20]} 75. Kg1 {[%emt 0:02:03]} Qc4 {[%emt 0:01:15]} 76. b5 {[%emt 0:00:01]} axb5 {[%emt 0:00:47]} (76... Qxb5 77. Qxc3 Qb7 78. Qc2 $17) 77. a6 {[%emt 0:00:00]} b4 {[%emt 0:00:43]} 78. a7 {[%emt 0:00:33]} Qa6 {[%emt 0:00:02]} (78... b3 $142 79. Qd1 c2 (79... Qc5+ $2 80. Kg2 $19) 80. Qd7+ Kg6 81. a8=Q c1=Q+ (81... c1=B 82. Qae8+ Kg5 83. Qg7+ Kf5 84. Qgg6#) 82. Kh2 Q1c2+ 83. Qg2 Qxg2+ 84. Kxg2 b2 85. Qe8+ Kg5 86. Qb8 Qa2 87. Kf3 b1=Q (87... b1=B $2 88. Qd6 $19) 88. Qxb1 Qxb1 89. Ke2 Qc2+ 90. Kf3 Qd1+ 91. Kg2 Qe2+ 92. Kh1 Kg4 93. Kg1 Kxg3 94. Kh1 Qh2#) 79. Qf2 $19 {[%emt 0:00:22]} Qa5 {[%emt 0:01:16]} 80. g4 {[%emt 0:00:31]} hxg4 {[%emt 0:00:28]} 81. Kh2 {[%emt 0:00:51]} c2 {[%emt 0:00:18]} 82. Qxc2 {[%emt 0:00:28]} Qxa7 {[%emt 0:00:01]} 83. Qf5 {[%emt 0:00:11]} Qd4 {[%emt 0:00:07]} 0-1

[Event "Baku Open 2024"]
[Site "Baku"]
[Date "2024.07.03"]
[Round "5.17"]
[White "Khamdamova, Afruza"]
[Black "Gokerkan, Cem Kaan"]
[Result "0-1"]
[ECO "B92"]
[WhiteElo "2291"]
[BlackElo "2512"]
[Annotator "TA"]
[PlyCount "112"]
[EventDate "2024.06.29"]
[EventType "swiss"]
[EventCountry "AZE"]
[SourceTitle "playchess.com"]
[Source "ChessBase"]
[SourceQuality "1"]
[TimeControl "5400+30"]

{[%evp 15,112,9,35,18,20,0,12,11,26,0,4,18,9,10,13,10,37,0,45,43,47,31,54,43,38,43,133,72,54,68,78,0,0,0,7,0,-14,-173,-152,-209,-206,-264,-270,-293,-273,-288,-292,-401,-401,-380,-345,-421,-412,-536,-519,-645,-604,-604,-604,-604,-604,-1519,-629,-634,-606,-651,0,-602,-551,-1135,-1069,-1176,-1157,-1120,-260,-682,-667,-618,0,-606,-201,-689,-736,-756,-666,-653,-620,-747,-792,-818,-777,-1589,-1412,-1917,-1866,-3285,-3348,-29939,-7657]} 1. e4 {[%emt 0:00:02]} c5 {[%emt 0:03:26]} 2. Nf3 {[%emt 0:00:06]} d6 {[%emt 0:00:05]} 3. d4 {[%emt 0:00:05]} cxd4 {[%emt 0:00:07]} 4. Nxd4 {[%emt 0:00:05]} Nf6 {[%emt 0:00:04]} 5. Nc3 {[%emt 0:00:07]} a6 {[%emt 0:00:04]} 6. Be2 {[%emt 0:00:23]} e5 {[%emt 0:00:22]} 7. Nb3 {[%emt 0:00:05]} Be6 {[%emt 0:00:31]} 8. O-O {[%emt 0:02:23]} Nbd7 {[%emt 0:00:26]} 9. Qd3 {[%emt 0:06:33]} Rc8 {[%emt 0:01:20]} 10. Bd2 {[%emt 0:03:14]} Bc4 {[%emt 0:12:18]} 11. Qf3 {[%emt 0:05:36] The position is equal.} Be7 {[%emt 0:05:03]} 12. Rad1 {[%emt 0:09:07]} b5 {[%emt 0:03:38]} 13. Bxc4 {[%emt 0:00:27]} Rxc4 {[%emt 0:00:24]} 14. a3 {[%emt 0:01:27]} O-O {[%emt 0:12:58]} 15. Rfe1 {[%emt 0:15:01]} h6 {[%emt 0:16:14]} 16. Be3 {[%emt 0:01:41]} Qa8 {[%emt 0:31:45][%cal Of8c8]} 17. Nd2 {[%emt 0:03:00]} Rc6 {[%emt 0:00:07]} 18. Nf1 {[%emt 0:03:16]} Rfc8 {[%emt 0:00:13]} 19. Bd2 {[%emt 0:01:23]} Bf8 {[%emt 0:03:08]} 20. Ne3 {[%emt 0:08:42]} g6 {[%emt 0:00:01]} (20... Qb7 $14) 21. Ng4 {[%emt 0:07:51]} (21. Ncd5 $142 Kg7 (21... Nxd5 22. Nxd5 b4 23. axb4 $18) 22. Nb4) 21... Nxg4 $16 {[%emt 0:00:37]} 22. Qxg4 {[%emt 0:00:04]} Nb6 {[%emt 0:01:23]} 23. Bc1 {[%emt 0:12:20]} (23. Qh4 $16) 23... h5 $11 {[%emt 0:00:24]} 24. Qh4 {[%emt 0:00:46]} Qb7 {[%emt 0:00:49]} 25. Rd3 {[%emt 0:01:35]} a5 {[%emt 0:00:27] ...b4 would now be deadly.} 26. Nxb5 {[%emt 0:11:13] Black keeps a firm grip on the game.} (26. g4 $11 b4 27. axb4 axb4 28. Nd1) 26... Rxc2 $19 {[%emt 0:00:04]} 27. Nc3 {[%emt 0:00:36] [#]} (27. Rc3 $17) 27... Na4 $1 $40 {[%emt 0:00:29][%cal Oc2c1][%mdl 640] Black attacks with force.} 28. Qh3 {[%emt 0:02:46]} (28. Qg5 Nxc3) 28... Nxc3 {[%emt 0:00:13]} ({Resist} 28... Nxb2 29. Bxb2 Rxb2 30. Nd5 $17) 29. bxc3 {[%emt 0:00:26] [#]} Qxe4 {[%emt 0:00:16][%mdl 512]} 30. Bd2 {[%emt 0:01:15]} Qc4 {[%emt 0:03:06]} 31. Rd1 {[%emt 0:01:45]} Rb8 {[%emt 0:00:26]} ({Don't take} 31... d5 32. Be1 $19) 32. Be1 {[%emt 0:00:25]} Ra2 {[%emt 0:01:04]} 33. Qe3 {[%emt 0:01:03]} Rxa3 {[%emt 0:00:19]} 34. h3 {[%emt 0:00:14]} Rab3 {[%emt 0:00:26]} 35. Rd5 {[%emt 0:00:51]} a4 {[%emt 0:00:59] Strongly threatening ...Rb1.} 36. Ra5 {[%emt 0:00:07]} Rb1 {[%emt 0:01:42]} 37. Rxb1 {[%emt 0:01:42]} Rxb1 {[%emt 0:00:01]} 38. g3 {[%emt 0:00:37]} Qc6 {[%emt 0:00:30]} (38... Bh6 $142 39. f4 h4 (39... exf4 $2 40. gxf4 Kh7 41. Kg2 $19)) 39. Kh2 {[%emt 0:00:37]} Rb8 {[%emt 0:00:27]} 40. Qa7 {[%emt 0:00:30]} Rb1 {[%emt 0:01:12]} 41. Qe3 {[%emt 0:00:05]} Kg7 {[%emt 0:01:37]} 42. h4 {[%emt 0:00:42]} Be7 {[%emt 0:00:25]} 43. Qe2 {[%emt 0:00:31]} Bd8 {[%emt 0:02:50]} 44. Ra7 {[%emt 0:00:17]} Rb7 $2 {[%emt 0:00:00]} (44... Bb6 45. Ra6 Ra1) 45. Ra6 {[%emt 0:00:30]} (45. Qa6 Qxa6 46. Rxa6) 45... Rb6 {[%emt 0:00:00]} 46. Ra7 {[%emt 0:00:13]} Rb7 {[%emt 0:00:00]} 47. Ra6 {[%emt 0:00:06]} Qd7 {[%emt 0:00:03]} (47... Rb2 48. Qd3 Bb6) 48. Qe4 {[%emt 0:00:31]} (48. Qd1 Bb6 49. Rxa4) 48... Ra7 {[%emt 0:00:15]} 49. Qc4 {[%emt 0:00:50]} Rxa6 {[%emt 0:00:49]} 50. Qxa6 {[%emt 0:00:03][%mdl 4096] Endgame. KQB-KQB} d5 {[%emt 0:00:13]} 51. Bd2 {[%emt 0:00:22]} Be7 {[%emt 0:00:23]} 52. f4 {[%emt 0:00:58]} Bd6 {[%emt 0:01:22] White must now prevent ...exf4.} 53. fxe5 {[%emt 0:01:42]} Bxe5 {[%emt 0:00:02]} 54. Qe2 {[%emt 0:00:27]} Qc7 {[%emt 0:00:29][%cal Oa4a3] Hoping for ...a3!} 55. Qd3 {[%emt 0:00:32]} Qc4 {[%emt 0:00:09]} 56. Qe3 {[%emt 0:00:08]} Qxh4+ {[%emt 0:00:06] Weighted Error Value: White=0.54/Black=0.31.  Mistake:       	White=5     	Black=1      Inaccurate:     	White=5     	Black=2      OK:         	White=8     	Black=15     Brilliant:      	---       	Black=1} 0-1

[Event "Baku Open 2024"]
[Site "Baku"]
[Date "2024.07.03"]
[Round "5.18"]
[White "Babazada, Khazar"]
[Black "Rustamov, Rustam"]
[Result "1-0"]
[ECO "B94"]
[WhiteElo "2468"]
[BlackElo "2285"]
[Annotator "TA"]
[PlyCount "49"]
[EventDate "2024.06.29"]
[EventType "swiss"]
[EventCountry "AZE"]
[SourceTitle "playchess.com"]
[Source "ChessBase"]
[SourceQuality "1"]
[TimeControl "5400+30"]

{[%evp 12,49,16,16,20,19,18,20,1,2,-9,-1,15,12,56,0,44,45,28,38,29,37,38,31,34,0,14,0,31,43,510,497,729,734,495,390,550,545,535,147]} 1. e4 {[%emt 0:02:03]} c5 {[%emt 0:00:23]} 2. Nf3 {[%emt 0:00:05]} d6 {[%emt 0:00:09]} 3. d4 {[%emt 0:00:06]} cxd4 {[%emt 0:00:14]} 4. Nxd4 {[%emt 0:00:05]} Nf6 {[%emt 0:00:07]} 5. Nc3 {[%emt 0:00:06]} a6 {[%emt 0:00:08]} 6. Bg5 {[%emt 0:00:22]} Nbd7 {[%emt 0:00:34]} 7. Bc4 {[%emt 0:00:16]} Qb6 {[%emt 0:00:36]} 8. Bb3 {[%emt 0:04:20]} e6 {[%emt 0:00:39]} 9. Qd2 {[%emt 0:00:09]} Be7 {[%emt 0:00:34] The position is equal.} 10. O-O-O {[%emt 0:01:57]} Nc5 {[%emt 0:01:08]} 11. Rhe1 {[%emt 0:02:39][%cal Od4f5] [#] Nf5! is the strong threat.} Qc7 {[%emt 0:08:59]} 12. f4 {[%emt 0:03:56][%cal Bf2f4,Bf4e5][%mdl 32] Black should prevent e5.} O-O {[%emt 0:01:22]} (12... h6 $5 13. Bxf6 Bxf6 $11) 13. Kb1 {[%emt 0:06:31]} (13. e5 $14 dxe5 14. fxe5) 13... b5 {[%emt 0:14:52]} 14. e5 {[%emt 0:00:36]} dxe5 {[%emt 0:09:35]} 15. fxe5 {[%emt 0:00:11]} Ne8 {[%emt 0:05:02]} 16. Ne4 $36 {[%emt 0:16:00][%mdl 2048] aiming for Bxe7. White is more active.} Nxb3 {[%emt 0:18:08]} 17. axb3 {[%emt 0:15:56]} Bb7 {[%emt 0:01:13]} 18. Ng3 {[%emt 0:00:06]} Rc8 {[%emt 0:05:01]} 19. Nh5 {[%emt 0:01:50]} (19. Bxe7 {simplifies} Qxe7 20. Ne4 h6 21. b4) 19... Qd8 {[%emt 0:04:53]} 20. h4 {[%emt 0:01:58]} Nc7 $2 {[%emt 0:01:08][%mdl 8192] [#] Black cannot hold the game after this.} (20... Kh8 $14) 21. Bf6 $1 $18 {[%emt 0:02:29]} gxf6 {[%emt 0:01:42]} (21... Bxf6 $142 22. exf6 Qd5) 22. Qh6 {[%emt 0:02:14]} Ne8 {[%emt 0:00:01] Repels Qg7+} 23. Nc6 {[%emt 0:02:39]} Bxc6 {[%emt 0:02:50]} (23... Qxd1+ {was worth a try.} 24. Rxd1 Bxc6) 24. Rxd8 {[%emt 0:00:16]} Rxd8 {[%emt 0:00:30]} 25. Nxf6+ $2 {[%emt 0:00:27] Weighted Error Value: White=0.17 (very precise) /Black=0.62.  Loses game:     	---       	Black=1      Missed win:     	White=1     	---        Mistake:       	White=1     	Black=1      Inaccurate:     	White=1     	Black=3      OK:         	White=4     	Black=7      Best:        	White=2     	Black=1      Strong:       	White=1     	---} (25. Re3 $18 Be4 (25... Bxg2 26. Rg3+ Kh8 27. Nxf6 Rd1+ 28. Ka2) 26. Rxe4) 1-0